fUSD/lending_fUSD_20251221
["ID","MTS","AMOUNT","RATE_DAILY","PERIOD"]
[399410548,1766332245370,-150.0,0.00016916,2]
[399410549,1766332245379,-150.0,0.00016938,2]
[399410550,1766332245388,-243.0,0.0001694,2]
[399410551,1766332245398,-150.0,0.00016946,2]
[399410552,1766332245407,-150.0,0.0001695,2]
[399410553,1766332245416,-222.23,0.00016951,2]
[399410554,1766332245426,-150.32225297,0.00016973,2]
[399410555,1766332245435,-549.74315086,0.00016983,2]
[399410556,1766332245444,-151.0,0.00016983,2]
[399410557,1766332245454,-52741.43,0.00016986,2]
[399410558,1766332245463,-152.0542516,0.00016986,2]
[399410560,1766332245473,-158.48329942,0.00016986,2]
[399410561,1766332245482,-160.33063992,0.00016986,2]
[399410562,1766332245492,-155.64705311,0.00016986,2]
[399410563,1766332245502,-164.52110484,0.00016986,2]
[399410564,1766332245511,-156.76422926,0.00016986,2]
[399410565,1766332245520,-152.11986511,0.00016986,2]
[399410566,1766332245530,-150.82546103,0.00016986,2]
[399410567,1766332245540,-151.72084113,0.00016986,2]
[399410568,1766332245549,-151.68546766,0.00016986,2]
[399410569,1766332245559,-157.75435091,0.00016986,2]
[399410570,1766332245568,-162.0002847,0.00016986,2]
[399410571,1766332245578,-152.70737667,0.00016986,2]
[399410572,1766332245587,-152.94375339,0.00016986,2]
[399410573,1766332245597,-597.97537004,0.00016988,2]
[399410574,1766332245607,-597.97537004,0.0001699,2]
[399410575,1766332245616,-151.0,0.00016995,2]
[399410576,1766332245626,-1230262.1199787,0.00016996,2]
[399410577,1766332245635,-1336.1985799,0.00016996,2]
[399410578,1766332245645,-3846.2710758,0.00016997,2]
[399410579,1766332245655,-151.0,0.00016997,2]
[399410580,1766332245664,-71884.376482,0.00016998,2]
[399410581,1766332245673,-1101.62355977,0.00016999,5]
[399410582,1766332245682,-500.0,0.00016999,2]
[399410583,1766332245691,-500.0,0.00016999,2]
[399410584,1766332245700,-500.0,0.00016999,2]
[399410585,1766332245710,-300.0,0.00016999,2]
[399410586,1766332245719,-300.0,0.00016999,2]
[399410587,1766332245729,-666.0,0.00016999,2]
[399410588,1766332245738,-676.23992225,0.00016999,2]
[399410589,1766332245747,-777346.53715264,0.00017,2]
[399410590,1766332245768,-750.80135176,0.00017,2]
[399410591,1766332245779,-783.366906,0.00017,2]
[399410592,1766332245790,-987.10060539,0.00017,2]
[399410593,1766332245866,-5465637.06916963,0.00017,2]
[399410594,1766332245877,-7032.92290776,0.00017,2]
[399410595,1766332245888,-778.11063303,0.00017,2]
[399410596,1766332245897,-1546005.45541387,0.00017,2]
[399410597,1766332245908,-1520.19700285,0.00017,2]
[399410598,1766332245919,-381.691399,0.00017,2]
[399410599,1766332245953,-323.45480665,0.00017,2]
[399410600,1766332245966,-2181.63349884,0.00017,2]
[399410601,1766332246065,-337.9383,0.00011339,2]
[399410602,1766332246076,-460.71535664,0.00011339,2]
[399410604,1766332246087,-1612.92171078,0.00011339,2]
[399410605,1766332246099,-2630.64669746,0.00011339,2]
[399410606,1766332246123,-267.470874,0.00011339,2]
[399410607,1766332246701,-3511.20327443,0.00011339,2]
[399410608,1766332246716,-3067.597645,0.00011339,2]
[399410609,1766332258542,156.0,0.00034521,30]
[399410615,1766332280405,152.067628,0.0003561,31]
[399410616,1766332296658,117.67988934,0.00011112,2]
[399410617,1766332300042,768.0,0.0003561,30]
[399410618,1766332300845,1968.0,0.0003561,30]
[399410619,1766332306948,470.07927239,0.0003561,30]
[399410620,1766332336043,200.0,0.0003561,120]
[399410621,1766332351405,151.0,0.0003561,30]
[399410624,1766332355775,151.0,0.0003561,31]
[399410625,1766332362482,336.55193058,0.0003561,30]
[399410626,1766332400139,167.43597252,0.0003561,30]
[399410627,1766332405765,151.0,0.0003561,31]
[399410628,1766332407251,151.0,0.00035616,31]
[399410630,1766332407570,151.0,0.00035616,31]
[399410636,1766332539603,182.31,5.958e-05,2]
[399410637,1766332539806,182.31,8.937e-05,2]
[399410642,1766332559092,2803.3,0.000356,120]
[399410652,1766332688828,1000.0,0.00035616,30]
[399410673,1766333005168,151.0,0.00035616,31]
[399410674,1766333005672,202.790376,0.00035616,31]
[399410687,1766333153271,858.0,0.00035,30]
[399410689,1766333165829,858.0,0.00035,30]
[399410692,1766333202753,709.10396729,0.00035,30]
[399410697,1766333341258,1000.0,0.00035615,30]
[399410698,1766333341513,1000.0,0.00035615,30]
[399410699,1766333341769,1000.0,0.00035609,30]
[399410704,1766333431744,-712.104928,0.00010985,2]
[399410705,1766333431754,-568.05286395,0.00010999,2]
[399410706,1766333431763,-165.2257528,0.0001102,2]
[399410707,1766333431836,-402.82711114,0.0001102,2]
[399410708,1766333431845,-187.54426873,0.00011041,2]
[399410709,1766333431855,-568.05286394,0.00011041,2]
[399410714,1766333432136,-195.0,0.00011055,2]
[399410716,1766333432217,-250.0,0.0001107,2]
[399410717,1766333432226,-250.0,0.00011096,2]
[399410718,1766333432236,-1200.0,0.00011098,2]
[399410719,1766333432245,-300.0,0.00011098,2]
[399410720,1766333432255,-300.0,0.00011098,2]
[399410721,1766333432264,-8287.35098181,0.00011099,2]
[399410722,1766333432275,-263.62222108,0.00011099,2]
[399410723,1766333432287,-1765.86379233,0.00011099,2]
[399410724,1766333432298,-2943.2127606,0.00011099,2]
[399410725,1766333432311,-546.93419926,0.00011099,2]
[399410726,1766333432323,-9852.82371439,0.00011099,2]
[399410727,1766333432333,-19924.45879842,0.00011099,2]
[399410728,1766333432344,-195.0,0.00011121,2]
[399410729,1766333432354,-500.0,0.00011138,2]
[399410730,1766333432368,-174.72920086,0.00011138,2]
[399410731,1766333432378,-540.02753265,0.00011138,2]
[399410732,1766333432388,-327.8684622,0.00011138,2]
[399410733,1766333432397,-500.0,0.00011138,2]
[399410734,1766333432406,-500.0,0.00011138,2]
[399410735,1766333432416,-454.84620431,0.00011138,2]
[399410736,1766333432425,-21.85038382,0.00011138,2]
[399410739,1766333437796,-478.14961618,0.00011138,2]
[399410740,1766333437806,-500.0,0.00011138,2]
[399410741,1766333437815,-500.0,0.00011138,2]
[399410742,1766333437825,-500.0,0.00011138,2]
[399410743,1766333437834,-500.0,0.00011138,2]
[399410744,1766333437843,-182.35785126,0.00011138,2]
[399410745,1766333437853,-500.0,0.00011138,2]
[399410746,1766333437862,-500.0,0.00011138,2]
[399410747,1766333437871,-644.98232378,0.00011138,2]
[399410748,1766333437880,-150.0,0.00011138,2]
[399410749,1766333437889,-1000000.0,0.00011139,2]
[399410750,1766333437898,-1339.51,0.00011141,2]
[399410751,1766333437911,-2145.07550922,0.00011238,2]
[399410752,1766333437921,-1088.1197,0.00011239,2]
[399410753,1766333437930,-5485.7312,0.00011239,2]
[399410754,1766333437939,-1360.19288692,0.00011239,2]
[399410755,1766333437949,-151.0,0.00011333,2]
[399410756,1766333437958,-9999.99,0.00011336,2]
[399410757,1766333437968,-309.03,0.00011336,2]
[399410758,1766333437977,-1101.62355977,0.00011338,3]
[399410759,1766333437987,-273.18,0.00011338,2]
[399410760,1766333437996,-289.03,0.00011338,2]
[399410761,1766333438006,-9989.77,0.00011338,2]
[399410762,1766333438015,-150.99,0.00011338,2]
[399410763,1766333438024,-150.99,0.00011338,2]
[399410764,1766333438034,-299.99,0.00011338,2]
[399410765,1766333438043,-221.43334789,0.00011338,3]
[399410766,1766333438053,-1000.0,0.00011339,2]
[399410767,1766333438062,-200.0,0.0001147,2]
[399410768,1766333438072,-3451.84,0.00011654,2]
[399410769,1766333438081,-23659.80766939,0.00011692,2]
[399410770,1766333438090,-19924.45879842,0.00011692,2]
[399410771,1766333438100,-1852.42,0.00011885,2]
[399410772,1766333438109,-182.31,0.00011916,2]
[399410773,1766333438118,-250.0,0.00012145,2]
[399410774,1766333438127,-302.67058851,0.00012145,2]
[399410775,1766333438137,-195.0,0.00012145,2]
[399410776,1766333438146,-300.0,0.00012145,2]
[399410777,1766333438155,-255.0,0.00012185,2]
[399410778,1766333438165,-300.0,0.00012208,2]
[399410779,1766333438174,-1680.0,0.00012208,2]
[399410780,1766333438183,-300.0,0.00012209,2]
[399410781,1766333438193,-500.0,0.00012231,2]
[399410782,1766333438202,-195.0,0.00012232,2]
[399410783,1766333438211,-3240.0,0.00012305,2]
[399410784,1766333438220,-166.66,0.00012312,2]
[399410785,1766333438230,-23659.80766939,0.00012343,2]
[399410786,1766333438239,-19924.45879842,0.00012343,2]
[399410787,1766333438249,-166.66,0.00012718,2]
[399410788,1766333438258,-187.54426871,0.00012949,2]
[399410789,1766333438268,-597.97537004,0.00012984,2]
[399410790,1766333438277,-23659.80766939,0.00012994,2]
[399410792,1766333438290,-19924.45879842,0.00012994,2]
[399410793,1766333438299,-166.66,0.00013125,2]
[399410794,1766333438309,-334.23,0.0001319,2]
[399410795,1766333438319,-8969.14088172,0.00013203,2]
[399410796,1766333438329,-361.83,0.00013254,2]
[399410797,1766333438338,-223.24574971,0.00013273,2]
[399410798,1766333438347,-224.07561459,0.00013273,2]
[399410799,1766333438357,-500.0,0.00013273,2]
[399410800,1766333438366,-169.30599703,0.00013273,2]
[399410801,1766333438376,-500.0,0.00013273,2]
[399410802,1766333438385,-174.7668322,0.00013273,2]
[399410803,1766333438395,-500.28275711,0.00013273,2]
[399410804,1766333438404,-165.55250469,0.00013273,2]
[399410805,1766333438413,-500.0,0.00013273,2]
[399410806,1766333438423,-500.0,0.00013273,2]
[399410807,1766333438432,-500.0,0.00013273,2]
[399410808,1766333438442,-176.68955298,0.00013273,2]
[399410809,1766333438451,-501.13880069,0.00013273,2]
[399410810,1766333438461,-235.5477362,0.00013273,2]
[399410811,1766333438471,-172.78810174,0.00013273,2]
[399410812,1766333438480,-172.62322663,0.00013273,2]
[399410813,1766333438490,-163.12595914,0.00013273,2]
[399410814,1766333438500,-500.0,0.00013273,2]
[399410815,1766333438510,-500.0,0.00013273,2]
[399410816,1766333438520,-500.0,0.00013273,2]
[399410817,1766333438530,-163.74041745,0.00013273,2]
[399410818,1766333438539,-500.0,0.00013273,2]
[399410819,1766333438550,-162.88863399,0.00013273,2]
[399410820,1766333438559,-500.0,0.00013273,2]
[399410821,1766333438569,-165.33365869,0.00013273,2]
[399410822,1766333438579,-216.30072536,0.00013273,2]
[399410823,1766333438589,-500.0,0.00013273,2]
[399410824,1766333438598,-500.0,0.00013273,2]
[399410825,1766333438608,-201.68060624,0.00013273,2]
[399410826,1766333438617,-160.24966058,0.00013273,2]
[399410827,1766333438630,-500.0,0.00013273,2]
[399410828,1766333438640,-276.49556074,0.00013273,2]
[399410829,1766333438649,-500.0,0.00013273,2]
[399410830,1766333438659,-500.0,0.00013273,2]
[399410831,1766333438670,-500.0,0.00013273,2]
[399410832,1766333438683,-165.47156837,0.00013273,2]
[399410833,1766333438692,-500.0,0.00013273,2]
[399410834,1766333438702,-500.0,0.00013273,2]
[399410835,1766333438712,-1838.83,0.00013273,2]
[399410836,1766333438723,-433.0,0.00013332,2]
[399410837,1766333438732,-2351.0,0.00013428,2]
[399410838,1766333438742,-166.66,0.00013531,2]
[399410839,1766333438752,-1838.83,0.00013547,2]
[399410840,1766333438762,-5369.08,0.00013582,2]
[399410841,1766333438772,-23659.80766939,0.00013645,2]
[399410842,1766333438782,-19924.45879842,0.00013645,2]
[399410843,1766333438791,-500.0,0.00013698,2]
[399410844,1766333438801,-500.0,0.00013698,2]
[399410845,1766333438811,-500.0,0.00013698,2]
[399410846,1766333438820,-500.0,0.00013698,2]
[399410847,1766333438829,-500.0,0.00013698,2]
[399410848,1766333438839,-500.0,0.00013698,2]
[399410849,1766333438849,-500.0,0.00013698,2]
[399410850,1766333438859,-500.0,0.00013698,2]
[399410851,1766333438869,-500.0,0.00013698,2]
[399410852,1766333438880,-500.0,0.00013698,2]
[399410853,1766333438889,-500.0,0.00013698,2]
[399410854,1766333438899,-432.90096015,0.00013698,2]
[399410855,1766333438908,-500.0,0.00013698,2]
[399410856,1766333438918,-500.0,0.00013698,2]
[399410857,1766333438928,-500.0,0.00013698,2]
[399410858,1766333438937,-500.0,0.00013698,2]
[399410859,1766333438947,-500.0,0.00013698,2]
[399410860,1766333438957,-500.0,0.00013698,2]
[399410861,1766333438967,-500.0,0.00013698,2]
[399410862,1766333438976,-500.0,0.00013698,2]
[399410863,1766333438986,-500.0,0.00013698,2]
[399410864,1766333438997,-500.0,0.00013698,2]
[399410865,1766333439007,-500.0,0.00013698,2]
[399410866,1766333439016,-500.0,0.00013698,2]
[399410867,1766333439026,-500.0,0.00013698,2]
[399410868,1766333439036,-500.0,0.00013698,2]
[399410869,1766333439046,-500.0,0.00013698,2]
[399410870,1766333439058,-500.0,0.00013698,2]
[399410871,1766333439068,-500.0,0.00013698,2]
[399410872,1766333439078,-500.0,0.00013698,2]
[399410873,1766333439088,-501.00325997,0.00013698,2]
[399410874,1766333439098,-500.0,0.00013698,2]
[399410875,1766333439111,-500.0,0.00013698,2]
[399410876,1766333439121,-500.0,0.00013698,2]
[399410877,1766333439131,-500.0,0.00013698,2]
[399410878,1766333439141,-500.0,0.00013698,2]
[399410879,1766333439151,-500.0,0.00013698,2]
[399410880,1766333439161,-500.0,0.00013698,2]
[399410881,1766333439171,-500.0,0.00013698,2]
[399410882,1766333439186,-500.0,0.00013698,2]
[399410883,1766333439195,-500.0,0.00013698,2]
[399410884,1766333439205,-500.0,0.00013698,2]
[399410885,1766333439215,-500.0,0.00013698,2]
[399410886,1766333439225,-500.0,0.00013698,2]
[399410887,1766333439235,-500.0,0.00013698,2]
[399410888,1766333439244,-500.0,0.00013698,2]
[399410889,1766333439254,-500.0,0.00013698,2]
[399410890,1766333439264,-500.0,0.00013698,2]
[399410891,1766333439274,-500.0,0.00013698,2]
[399410892,1766333439284,-500.0,0.00013698,2]
[399410893,1766333439294,-500.0,0.00013698,2]
[399410894,1766333439304,-510.69307451,0.00013698,2]
[399410895,1766333439315,-500.0,0.00013698,2]
[399410896,1766333439324,-500.0,0.00013698,2]
[399410897,1766333439334,-500.0,0.00013698,2]
[399410898,1766333439344,-500.0,0.00013698,2]
[399410899,1766333439355,-500.0,0.00013698,2]
[399410900,1766333439364,-500.0,0.00013698,2]
[399410901,1766333439374,-500.0,0.00013698,2]
[399410902,1766333439384,-500.0,0.00013698,2]
[399410903,1766333439394,-500.0,0.00013698,2]
[399410904,1766333439403,-500.0,0.00013698,2]
[399410905,1766333439413,-500.0,0.00013698,2]
[399410906,1766333439422,-500.0,0.00013698,2]
[399410907,1766333439432,-500.0,0.00013698,2]
[399410908,1766333439441,-500.0,0.00013698,2]
[399410909,1766333439453,-500.0,0.00013698,2]
[399410910,1766333439462,-500.0,0.00013698,2]
[399410911,1766333439472,-500.0,0.00013698,2]
[399410912,1766333439481,-500.0,0.00013698,2]
[399410913,1766333439491,-500.0,0.00013698,2]
[399410914,1766333439500,-500.0,0.00013698,2]
[399410915,1766333439510,-500.0,0.00013698,2]
[399410916,1766333439520,-500.0,0.00013698,2]
[399410917,1766333439529,-500.0,0.00013698,2]
[399410918,1766333439539,-344.15406571,0.00013698,2]
[399410919,1766333439548,-500.0,0.00013698,2]
[399410920,1766333439558,-500.0,0.00013698,2]
[399410921,1766333439568,-500.0,0.00013698,2]
[399410922,1766333439578,-500.0,0.00013698,2]
[399410923,1766333439588,-511.95166241,0.00013698,2]
[399410924,1766333439597,-500.0,0.00013698,2]
[399410925,1766333439607,-500.0,0.00013698,2]
[399410926,1766333439616,-500.0,0.00013698,2]
[399410927,1766333439626,-500.0,0.00013698,2]
[399410928,1766333439638,-500.0,0.00013698,2]
[399410929,1766333439647,-500.0,0.00013698,2]
[399410930,1766333439657,-500.0,0.00013698,2]
[399410931,1766333439667,-500.0,0.00013698,2]
[399410932,1766333439677,-500.0,0.00013698,2]
[399410933,1766333439687,-500.0,0.00013698,2]
[399410934,1766333439697,-500.0,0.00013698,2]
[399410935,1766333439710,-500.0,0.00013698,2]
[399410936,1766333439719,-500.0,0.00013698,2]
[399410937,1766333439729,-500.0,0.00013698,2]
[399410938,1766333439738,-500.0,0.00013698,2]
[399410939,1766333439747,-500.0,0.00013698,2]
[399410940,1766333439757,-500.0,0.00013698,2]
[399410941,1766333439766,-500.0,0.00013698,2]
[399410942,1766333439779,-500.0,0.00013698,2]
[399410943,1766333439788,-500.0,0.00013698,2]
[399410944,1766333439798,-500.0,0.00013698,2]
[399410945,1766333439807,-500.0,0.00013698,2]
[399410946,1766333439818,-500.0,0.00013698,2]
[399410947,1766333439828,-500.0,0.00013698,2]
[399410948,1766333439838,-500.0,0.00013698,2]
[399410949,1766333439848,-500.0,0.00013698,2]
[399410950,1766333439857,-500.0,0.00013698,2]
[399410951,1766333439867,-500.0,0.00013698,2]
[399410952,1766333439877,-500.0,0.00013698,2]
[399410953,1766333439888,-500.0,0.00013698,2]
[399410954,1766333439898,-500.0,0.00013698,2]
[399410955,1766333439908,-500.0,0.00013698,2]
[399410956,1766333439919,-500.0,0.00013698,2]
[399410957,1766333439929,-500.0,0.00013698,2]
[399410958,1766333439939,-500.0,0.00013698,2]
[399410959,1766333439948,-500.0,0.00013698,2]
[399410960,1766333439958,-500.0,0.00013698,2]
[399410961,1766333439968,-500.0,0.00013698,2]
[399410962,1766333439977,-500.0,0.00013698,2]
[399410963,1766333439987,-500.0,0.00013698,2]
[399410964,1766333439996,-500.0,0.00013698,2]
[399410965,1766333440006,-500.0,0.00013698,2]
[399410966,1766333440015,-500.0,0.00013698,2]
[399410967,1766333440024,-500.0,0.00013698,2]
[399410968,1766333440034,-500.0,0.00013698,2]
[399410969,1766333440043,-500.0,0.00013698,2]
[399410970,1766333440053,-567.20870026,0.00013698,2]
[399410971,1766333440063,-200.0,0.00013699,2]
[399410972,1766333440073,-500.0,0.00013699,2]
[399410973,1766333440084,-500.0,0.00013699,2]
[399410974,1766333440094,-500.0,0.00013699,2]
[399410975,1766333440103,-500.0,0.00013699,2]
[399410976,1766333440113,-500.0,0.00013699,2]
[399410977,1766333440123,-397.46507558,0.00013699,2]
[399410978,1766333440132,-581.23249521,0.00013699,2]
[399410979,1766333440142,-5329.06,0.000137,2]
[399410980,1766333440151,-5329.06,0.000137,2]
[399410981,1766333440161,-500.0,0.0001382,2]
[399410982,1766333440172,-500.0,0.0001382,2]
[399410983,1766333440182,-500.0,0.0001382,2]
[399410984,1766333440191,-1001.62490087,0.00013821,2]
[399410985,1766333440200,-208.16009032,0.00013821,2]
[399410986,1766333440210,-1000.0,0.00013821,2]
[399410987,1766333440220,-1000.0,0.00013821,2]
[399410988,1766333440231,-500.84654228,0.00013821,2]
[399410989,1766333440242,-501.0380524,0.00013821,2]
[399410990,1766333440251,-1001.10835573,0.00013821,2]
[399410991,1766333440262,-572.75082077,0.00013821,2]
[399410992,1766333440272,-535.22474582,0.00013821,2]
[399410993,1766333440282,-1000.0,0.00013821,2]
[399410994,1766333440292,-1000.0,0.00013821,2]
[399410995,1766333440301,-484.06013596,0.00013821,2]
[399410996,1766333440312,-1000.0,0.00013821,2]
[399410997,1766333440322,-1000.0,0.00013821,2]
[399410998,1766333440331,-453.53849539,0.00013821,2]
[399410999,1766333440341,-235.55154497,0.00013821,2]
[399411000,1766333440352,-594.78120498,0.00013821,2]
[399411001,1766333440362,-1000.0,0.00013821,2]
[399411002,1766333440372,-1838.83,0.00013821,2]
[399411003,1766333440382,-333.35,0.00013839,2]
[399411004,1766333440391,-166.66,0.00013938,2]
[399411005,1766333440401,-1838.83,0.00014095,2]
[399411006,1766333440412,-500.0,0.00014137,2]
[399411007,1766333440423,-500.0,0.00014164,2]
[399411008,1766333440433,-23659.80766939,0.00014296,2]
[399411009,1766333440444,-19924.45879842,0.00014296,2]
[399411010,1766333440454,-166.66,0.00014344,2]
[399411011,1766333440464,-1838.83,0.00014368,2]
[399411012,1766333440473,-1500.0,0.00014368,2]
[399411013,1766333440483,-1500.0,0.00014368,2]
[399411014,1766333440493,-1500.0,0.00014368,2]
[399411015,1766333440502,-736.0,0.0001458,2]
[399411017,1766333440511,-500.0,0.00014603,2]
[399411019,1766333440521,-1838.83,0.00014642,2]
[399411020,1766333440530,-3292.0,0.00014771,2]
[399411021,1766333440540,-187.54426871,0.00014856,2]
[399411022,1766333440550,-1838.83,0.00014916,2]
[399411023,1766333440559,-2000.0,0.00014916,2]
[399411024,1766333440568,-1822.49283525,0.00014916,2]
[399411025,1766333440577,-2000.0,0.00014916,2]
[399411026,1766333440587,-23659.80766939,0.00014947,2]
[399411027,1766333440597,-19924.45879842,0.00014947,2]
[399411028,1766333440606,-553.63,0.00015068,2]
[399411029,1766333440615,-500.0,0.00015091,2]
[399411030,1766333440626,-500.0,0.00015112,2]
[399411031,1766333440643,-500.0,0.00015112,2]
[399411032,1766333440654,-1838.83,0.0001519,2]
[399411033,1766333440663,-150.0,0.00015288,2]
[399411034,1766333440678,-150.0,0.00015288,2]
[399411035,1766333440688,-150.0,0.00015288,2]
[399411036,1766333440698,-150.0,0.00015288,2]
[399411037,1766333440708,-151.28381653,0.00015288,2]
[399411038,1766333440717,-150.0,0.00015288,2]
[399411039,1766333440727,-150.0,0.00015288,2]
[399411040,1766333440736,-150.0,0.00015288,2]
[399411041,1766333440745,-150.0,0.00015288,2]
[399411042,1766333440755,-150.0,0.00015288,2]
[399411043,1766333440764,-150.0,0.00015288,2]
[399411044,1766333440774,-150.0,0.00015288,2]
[399411045,1766333440783,-150.0,0.00015288,2]
[399411046,1766333440793,-150.0,0.00015288,2]
[399411047,1766333440802,-150.89972091,0.00015288,2]
[399411048,1766333440812,-150.0,0.00015288,2]
[399411049,1766333440822,-150.0,0.00015288,2]
[399411050,1766333440832,-150.0,0.00015323,2]
[399411051,1766333440841,-150.0,0.00015328,2]
[399411052,1766333440850,-150.0,0.00015336,2]
[399411053,1766333440860,-150.0,0.00015356,2]
[399411054,1766333440869,-150.0,0.00015358,2]
[399411055,1766333440878,-150.0,0.00015365,2]
[399411056,1766333440887,-150.0,0.00015369,2]
[399411057,1766333440897,-150.0,0.00015373,2]
[399411058,1766333440907,-150.0,0.00015385,2]
[399411059,1766333440916,-150.0,0.00015394,2]
[399411060,1766333440924,-150.0,0.00015409,2]
[399411061,1766333440933,-150.0,0.00015424,2]
[399411062,1766333440942,-150.0,0.00015429,2]
[399411063,1766333440951,-150.0,0.00015433,2]
[399411064,1766333440960,-150.0,0.00015442,2]
[399411065,1766333440970,-150.0,0.00015449,2]
[399411066,1766333440979,-150.0,0.00015458,2]
[399411067,1766333440988,-1838.83,0.00015464,2]
[399411068,1766333441205,-2500.0,0.00015464,2]
[399411069,1766333441249,-2500.0,0.00015464,2]
[399411070,1766333441259,-150.0,0.00015465,2]
[399411071,1766333441268,-150.0,0.00015482,2]
[399411072,1766333441278,-150.0,0.0001549,2]
[399411073,1766333441290,-150.0,0.00015492,2]
[399411074,1766333441301,-150.0,0.000155,2]
[399411075,1766333441311,-150.0,0.000155,2]
[399411076,1766333441322,-150.0,0.00015519,2]
[399411077,1766333441332,-150.0,0.0001553,2]
[399411078,1766333441342,-150.0,0.0001553,2]
[399411079,1766333441351,-150.0,0.0001553,2]
[399411080,1766333441360,-150.0,0.00015535,2]
[399411081,1766333441369,-150.0,0.00015542,2]
[399411082,1766333441379,-150.0,0.00015559,2]
[399411083,1766333441388,-150.0,0.00015571,2]
[399411084,1766333441397,-150.0,0.00015571,2]
[399411085,1766333441406,-150.0,0.00015571,2]
[399411086,1766333441415,-150.0,0.00015579,2]
[399411087,1766333441424,-150.0,0.00015597,2]
[399411088,1766333441433,-23659.80766939,0.00015598,2]
[399411089,1766333441443,-19924.45879842,0.00015598,2]
[399411090,1766333441453,-150.0,0.00015606,2]
[399411091,1766333441462,-150.0,0.00015611,2]
[399411092,1766333441471,-150.0,0.00015627,2]
[399411093,1766333441481,-150.0,0.00015627,2]
[399411094,1766333441491,-150.0,0.00015627,2]
[399411095,1766333441500,-150.0,0.00015627,2]
[399411096,1766333441510,-150.0,0.00015642,2]
[399411097,1766333441519,-150.0,0.00015652,2]
[399411098,1766333441528,-150.0,0.00015674,2]
[399411099,1766333441538,-150.0,0.00015676,2]
[399411100,1766333441548,-150.0,0.00015677,2]
[399411101,1766333441557,-150.0,0.00015692,2]
[399411102,1766333441567,-150.0,0.00015695,2]
[399411103,1766333441576,-150.0,0.00015712,2]
[399411104,1766333441586,-150.0,0.00015712,2]
[399411105,1766333441596,-150.0,0.00015712,2]
[399411106,1766333441605,-150.0,0.00015724,2]
[399411107,1766333441615,-150.0,0.00015733,2]
[399411108,1766333441626,-1838.83,0.00015738,2]
[399411109,1766333441641,-150.0,0.00015748,2]
[399411110,1766333441650,-150.0,0.00015751,2]
[399411111,1766333441661,-150.0,0.00015763,2]
[399411112,1766333441671,-150.0,0.00015773,2]
[399411113,1766333441680,-150.0,0.00015773,2]
[399411114,1766333441690,-150.0,0.00015773,2]
[399411115,1766333441700,-150.0,0.00015783,2]
[399411116,1766333441711,-150.0,0.00015797,2]
[399411117,1766333441720,-150.0,0.00015813,2]
[399411118,1766333441730,-334.23,0.00015816,2]
[399411119,1766333441739,-150.0,0.00015818,2]
[399411120,1766333441749,-150.0,0.00015822,2]
[399411121,1766333441758,-150.0,0.00015828,2]
[399411122,1766333441767,-361.83,0.00015829,2]
[399411123,1766333441776,-150.0,0.00015831,2]
[399411124,1766333441786,-1360.19288688,0.00015849,2]
[399411125,1766333441795,-150.0,0.00015854,2]
[399411126,1766333441804,-150.0,0.00015854,2]
[399411127,1766333441813,-150.0,0.00015854,2]
[399411128,1766333441823,-150.0,0.00015854,2]